bitfinex-derivatives/quotes_ETHF0:USTF0_20250309
["timestamp","ask_amount","ask_price","bid_price","bid_amount"]
[1741564455815,4.20018,2015.7,2015.5,0.99247]
[1741564456018,3.2078,2015.7,2015.6,0.99243]
[1741564456423,2.29721,2015.9,2015.7,0.99235]
[1741564456920,1.3049,2015.9,2015.8,41.79234]
[1741564457123,3.2078,2016.3,2015.8,40.8]
[1741564457423,3.2078,2016.3,2015.8,43.564]
[1741564457926,0.99224,2016.0,2015.9,0.99229]
[1741564458115,0.99229,2015.9,2015.8,43.564]
[1741564458311,3.2078,2016.0,2015.8,43.564]
[1741564458517,4.20007,2016.0,2015.8,44.55632]
[1741564459020,0.99226,2016.0,2015.8,44.55631]
[1741564459419,3.2078,2016.3,2015.8,43.564]
[1741564459612,0.99224,2016.0,2015.8,43.564]
[1741564459813,0.99224,2016.0,2015.8,44.5563]
[1741564460017,3.2078,2016.3,2016.0,0.99222]
[1741564460222,3.2078,2016.3,2015.9,0.99226]
[1741564460618,3.2078,2016.3,2015.8,43.564]
[1741564460818,0.9922,2016.1,2015.8,43.564]
[1741564461017,0.99224,2016.0,2015.9,0.99227]
[1741564461217,0.99222,2016.1,2015.8,43.564]
[1741564461419,0.99223,2016.1,2015.9,0.99226]
[1741564461823,0.99224,2016.0,2015.9,0.99226]
[1741564462124,3.2078,2016.3,2015.8,43.564]
[1741564462313,3.2078,2016.3,2016.2,0.99214]
[1741564463426,3.2078,2016.3,2015.9,5.68852]
[1741564463427,3.2078,2016.3,2015.9,3.2078]
[1741564463626,0.99216,2016.2,2016.0,0.9922]
[1741564463818,4.19991,2016.3,2016.1,0.99219]
[1741564464024,0.99216,2016.2,2016.0,0.99221]
[1741564464423,4.1999,2016.3,2016.1,0.99215]
[1741564464726,3.2078,2016.3,2016.2,0.99214]
[1741564465224,3.2078,2016.3,2016.2,3.75414]
[1741564465431,2.6467,2016.5,2016.4,0.99204]
[1741564466127,4.1997,2016.7,2016.5,0.99196]
[1741564466330,4.19971,2016.7,2016.5,0.99196]
[1741564466826,3.2078,2016.7,2016.6,0.99194]
[1741564467023,3.2078,2016.7,2016.2,9.77886305]
[1741564467024,1.2728,2016.8,2016.7,0.99189]
[1741564467228,1.3398,2016.9,2016.5,3.2078]
[1741564467426,0.99187,2016.8,2016.6,0.99192]
[1741564467726,2.33161,2016.9,2016.7,0.99187]
[1741564467934,1.3398,2016.9,2016.8,0.99184]
[1741564468127,1.3398,2016.9,2016.8,41.79184]
[1741564468530,3.2078,2017.0,2016.8,40.8]
[1741564468728,4.19956,2017.0,2016.8,40.8]
[1741564469030,0.99179,2016.9,2016.8,40.8]
[1741564469228,3.2078,2017.0,2016.8,40.8]
[1741564469530,0.99179,2016.9,2016.8,40.8]
[1741564470023,0.99189,2016.7,2016.6,2.761]
[1741564470629,4.19969,2016.7,2016.6,2.761]
[1741564470937,3.2078,2016.7,2016.6,3.75294]
[1741564471233,0.99189,2016.7,2016.6,2.761]
[1741564471628,0.99192,2016.7,2016.5,0.99197]
[1741564471825,4.494,2016.8,2016.3,40.8]
[1741564472026,0.99194,2016.7,2016.5,0.99197]
[1741564472228,4.494,2016.8,2016.3,40.8]
[1741564472532,0.9919,2016.7,2016.5,0.99197]
[1741564472734,0.99197,2016.6,2016.4,0.99201]
[1741564472927,4.494,2016.8,2016.3,40.8]
[1741564473128,0.99193,2016.7,2016.5,0.99197]
[1741564473328,5.48588,2016.8,2016.6,0.99191]
[1741564473528,3.2078,2016.8,2016.7,0.99189]
[1741564473726,6.82681,2017.1,2016.9,0.99176]
[1741564473935,0.99175,2017.0,2016.8,0.99181]
[1741564474832,6.82683,2017.1,2016.9,0.99176]
[1741564475032,0.99176,2017.0,2016.8,0.99182]
[1741564475530,5.8351,2017.1,2016.7,1.3866]
[1741564475729,0.99182,2016.9,2016.7,0.99188]
[1741564476039,0.99184,2016.8,2016.6,3.7509]
[1741564476328,5.8351,2017.1,2016.6,2.759]
[1741564476736,0.99182,2016.9,2016.7,0.99186]
[1741564476926,0.99188,2016.8,2016.6,3.75093]
[1741564477325,3.2078,2016.8,2016.4,3.2078]
[1741564477528,0.99199,2016.5,2016.4,2.758]
[1741564477723,1.321,2016.7,2016.5,0.99196]
[1741564477932,0.99194,2016.6,2016.5,0.99196]
[1741564478131,1.321,2016.7,2016.4,2.758]
[1741564478531,4.19966,2016.8,2016.6,0.9919]
[1741564478728,0.99189,2016.7,2016.6,0.99194]
[1741564479036,3.2078,2016.8,2016.6,0.99193]
[1741564479224,0.99189,2016.7,2016.5,0.99197]
[1741564479424,0.99195,2016.6,2016.4,2.758]
[1741564479630,4.19967,2016.8,2016.4,2.758]
[1741564480029,0.99191,2016.7,2016.5,0.99199]
[1741564480233,3.2078,2016.8,2016.4,3.75002]
[1741564480541,0.99191,2016.7,2016.4,2.758]
[1741564480728,3.2078,2016.8,2016.4,2.758]
[1741564480929,4.19965,2016.8,2016.7,0.99189]
[1741564481131,4.19965,2016.8,2016.6,0.99192]
[1741564481534,0.99189,2016.7,2016.5,0.99197]
[1741564481734,3.2078,2016.8,2016.6,0.99192]
[1741564481934,0.99193,2016.7,2016.4,2.758]
[1741564482134,4.19967,2016.8,2016.6,0.9919]
[1741564482332,3.2078,2016.8,2016.3,44.0078]
[1741564482537,0.99191,2016.7,2016.3,44.0078]
[1741564482838,0.99191,2016.7,2016.5,0.99195]
[1741564483336,3.2078,2016.8,2016.7,0.99189]
[1741564483536,0.99184,2016.8,2016.5,2.757]
[1741564483840,1.321,2017.0,2016.5,2.757]
[1741564484135,1.321,2017.0,2016.6,1.2819]
[1741564484434,2.31275,2017.0,2016.9,0.99179]
[1741564484837,1.321,2017.0,2016.9,0.99179]
[1741564485031,2.31275,2017.0,2016.9,0.99179]
[1741564485234,1.321,2017.0,2016.9,0.99179]
[1741564485537,6.8268,2017.1,2016.9,0.99179]
[1741564485731,6.8268,2017.1,2016.6,7.97864]
[1741564486039,3.2078,2017.1,2016.8,0.99181]
[1741564486335,0.99171,2017.1,2016.9,0.99176]
[1741564486737,2.32822,2017.3,2016.7,2.47974]
[1741564486939,2.32822,2017.3,2017.1,0.99166]
[1741564487139,1.3366,2017.3,2017.0,41.79171]
[1741564487341,0.9917,2017.1,2017.0,40.8]
[1741564487739,0.9917,2017.1,2017.0,41.79175]
[1741564488044,0.99167,2017.2,2017.0,41.79175]
[1741564488242,0.99167,2017.2,2017.1,0.9917]
[1741564488438,1.3366,2017.3,2017.0,41.79171]
[1741564488638,0.9917,2017.1,2017.0,41.79171]
[1741564489240,0.9917,2017.1,2017.0,40.8]
[1741564489443,4.1995,2017.1,2017.0,40.8]
[1741564491144,0.99194,2016.6,2016.5,0.99196]
[1741564491346,3.2078,2016.8,2016.4,2.755]
[1741564491546,4.5971,2016.8,2016.4,2.755]
[1741564491747,0.99197,2016.6,2016.5,41.79198]
[1741564491946,0.99197,2016.6,2016.5,40.8]
[1741564492244,0.99197,2016.6,2016.5,41.79199]
[1741564492641,0.99197,2016.6,2016.5,40.8]
[1741564494246,0.99192,2016.7,2016.6,0.99193]
[1741564494443,0.99194,2016.6,2016.5,41.79196]
[1741564495044,0.99192,2016.7,2016.6,0.99193]
[1741564495246,4.5971,2016.8,2016.7,0.99189]
[1741564496238,5.58894,2016.8,2016.7,0.99189]
[1741564496644,0.99189,2016.7,2016.6,0.99191]
[1741564496851,5.58898,2016.8,2016.7,0.99189]
[1741564497043,4.5971,2016.8,2016.7,0.99189]
[1741564499854,3.2078,2016.8,2016.7,0.99189]
[1741564500254,10.4621,2017.2,2016.8,2.47962]
[1741564500451,2.31297,2017.2,2017.0,0.99172]
[1741564500644,1.3213,2017.2,2016.8,2.47962]
[1741564500846,6.1558,2017.9,2017.4,0.99155]
[1741564501050,6.90441,2017.9,2017.7,0.99137]
[1741564501251,5.9131,2017.9,2017.4,5.96723439]
[1741564501456,5.9131,2017.9,2017.5,41.4603879]
[1741564501648,5.9131,2017.9,2017.7,0.99139]
[1741564501849,2.7053,2017.9,2017.8,0.6603879]
[1741564502055,3.6966,2017.9,2017.8,0.6603879]
[1741564502353,0.99145,2017.6,2017.5,40.8]
[1741564502552,4.19925,2017.6,2017.5,40.8]
[1741564502947,4.19925,2017.6,2017.4,0.00743439]
[1741564502948,0.9915,2017.5,2017.4,4.334e-05]
[1741564503160,6.286,2017.5,2017.4,4.334e-05]
[1741564503468,0.99184,2016.8,2016.7,40.8]
[1741564503662,3.2078,2017.0,2016.5,2.752]
[1741564503857,3.2078,2017.0,2016.5,5.9598]
[1741564504060,3.2078,2017.0,2016.6,0.99191]
[1741564504269,3.2078,2017.0,2016.6,40.8]
[1741564504270,0.99189,2016.7,2016.6,40.8]
[1741564504473,0.99189,2016.7,2016.6,40.80743439]
[1741564504968,4.19969,2016.7,2016.6,40.80743439]
[1741564505162,3.2078,2016.7,2016.6,41.79937439]
[1741564505466,4.19969,2016.7,2016.6,40.80743439]
[1741564507370,3.2078,2016.7,2016.6,40.80743439]
[1741564507564,0.99187,2016.8,2016.6,41.79937439]
[1741564507770,3.2151722,2017.0,2016.6,40.80743439]
[1741564507972,3.2151722,2017.0,2016.9,0.99179]
[1741564508159,4.2069422,2017.0,2016.6,44.92073439]
[1741564508473,3.2151722,2017.0,2016.6,40.80743439]
[1741564508771,0.99186,2016.8,2016.6,41.79933439]
[1741564508969,0.99189,2016.7,2016.6,40.80743439]
[1741564509271,3.2151722,2017.0,2016.6,40.80743439]
[1741564509574,0.99189,2016.7,2016.6,40.80743439]
[1741564510165,0.99187,2016.8,2016.6,41.79935439]
[1741564510363,0.99183,2016.9,2016.6,40.80743439]
[1741564510559,3.2151722,2017.0,2016.6,40.80743439]
[1741564511070,0.99189,2016.7,2016.6,40.80743439]
[1741564511271,3.2151722,2017.0,2016.6,40.80743439]
[1741564511462,0.9918,2016.9,2016.7,0.99185]
[1741564511661,3.2151722,2017.0,2016.9,0.99179]
[1741564512568,0.0073722,2017.0,2016.9,4.19959]
[1741564512767,0.0073722,2017.0,2016.9,0.99179]
[1741564513768,3.2078,2017.4,2016.9,4.99179]
[1741564513966,0.9915,2017.5,2017.3,0.9916]
[1741564514366,4.5979,2017.7,2017.6,0.99145]
[1741564514569,4.5979,2017.7,2017.6,1.64707069]
[1741564514773,4.19909,2018.0,2017.6,0.65562069]
[1741564514970,3.2078,2018.0,2017.9,0.9913]
[1741564515171,4.19905,2018.0,2017.9,0.65562069]
[1741564515470,4.19905,2018.0,2017.9,41.45562069]
[1741564516670,7.2078,2018.0,2017.7,0.00743439]
[1741564516876,5.933,2017.9,2016.9,4.5077]
[1741564517171,3.2078,2017.4,2017.0,0.65558915]
[1741564517368,4.19937,2017.4,2017.2,0.99162]
[1741564517575,3.2078,2017.4,2017.3,0.65558915]
[1741564517772,4.19935,2017.4,2017.3,0.65558915]
[1741564518467,0.99165,2017.2,2017.1,0.00743439]
[1741564518662,0.99165,2017.2,2017.1,0.6635609]
[1741564520368,0.99165,2017.2,2017.1,0.00743439]
[1741564520565,0.99165,2017.2,2017.1,0.66464327]
[1741564521580,3.93964,2017.3,2017.1,1.65634327]
[1741564521770,6.1928,2017.4,2017.2,0.65720888]
[1741564521771,3.2078,2017.4,2017.2,0.65720888]
[1741564521971,4.19935,2017.4,2017.3,0.65720888]
[1741564522467,4.19935,2017.4,2017.3,0.65773319]
[1741564524373,4.19935,2017.4,2017.3,0.65843288]
[1741564525681,3.2078,2017.4,2017.3,1.65003288]
[1741564526181,4.19935,2017.4,2017.3,0.65843288]
[1741564528181,3.2078,2017.4,2017.1,0.00743439]
[1741564528377,0.99165,2017.2,2017.1,0.00743439]
[1741564528583,0.99165,2017.2,2017.1,0.66709407]
[1741564530084,0.99165,2017.2,2017.1,0.66800462]
[1741564532678,3.2078,2017.4,2017.1,0.66800462]
[1741564532881,0.9916,2017.3,2017.2,0.66057023]
[1741564536184,0.9916,2017.3,2017.1,0.00743439]
[1741564536185,0.99165,2017.2,2017.1,0.00743439]
[1741564536482,0.99179,2016.9,2016.8,40.8]
[1741564536681,4.19959,2016.9,2016.8,40.8]
[1741564537484,12.87659,2016.9,2016.8,38.65021]
[1741564537683,15.8848,2016.9,2015.6,3.2078]
[1741564537888,0.9923,2015.9,2015.7,0.99237]
[1741564538187,3.2078,2016.0,2015.6,3.2078]
[1741564538388,3.2078,2016.0,2015.5,2.7322]
[1741564538588,3.2078,2016.0,2015.9,0.99229]
[1741564538788,3.2078,2016.0,2015.6,40.8]
[1741564538789,0.99233,2015.9,2015.6,42.164]
[1741564538988,3.2078,2016.0,2015.7,0.00743439]
[1741564539188,0.99234,2015.8,2015.7,0.00743439]
[1741564539487,0.9923,2015.9,2015.7,0.99980439]
[1741564539689,4.20008,2016.0,2015.7,0.00743439]
[1741564539889,4.20005,2016.0,2015.8,0.99229]
[1741564540490,0.99229,2015.9,2015.7,0.99978439]
[1741564540694,0.99234,2015.8,2015.7,0.00743439]
[1741564541182,3.2078,2016.0,2015.7,0.00743439]
[1741564541382,0.99229,2015.9,2015.7,0.00743439]
[1741564541587,0.99234,2015.8,2015.7,0.00743439]
[1741564544196,3.2078,2016.0,2015.7,0.00743439]
[1741564544398,0.99234,2015.8,2015.7,0.00743439]
[1741564544989,3.2078,2016.0,2015.9,0.99229]
[1741564545187,0.00743439,2016.2,2016.1,0.99219]
[1741564545385,0.99960439,2016.2,2016.0,0.99221]
[1741564545693,0.99234,2015.8,2015.7,0.00743439]
[1741564545890,0.99232,2015.9,2015.7,0.99979439]
[1741564546190,0.99234,2015.8,2015.7,41.79981439]
[1741564546390,3.2078,2016.0,2015.8,0.99232]
[1741564546591,0.99233,2015.9,2015.7,41.79980439]
[1741564546795,0.99234,2015.8,2015.7,41.79980439]
[1741564546986,3.2078,2016.0,2015.7,41.79980439]
[1741564547488,0.99234,2015.8,2015.7,40.80743439]
[1741564547788,1.3758,2015.9,2015.2,2.743]
[1741564548086,0.99258,2015.3,2015.0,2.6375]
[1741564548389,4.2003,2015.5,2015.3,0.99255]
[1741564548798,3.2078,2015.5,2015.4,41.79253]
[1741564549094,0.00743439,2016.2,2015.6,2.48099]
[1741564549299,0.00743439,2016.2,2016.1,0.99219]
[1741564549882,0.00743439,2016.2,2016.1,41.79219]
[1741564551393,0.00743439,2016.2,2016.1,44.99999]
[1741564551590,0.99196,2016.6,2016.4,0.99201]
[1741564551887,0.99201,2016.5,2016.3,0.99205]
[1741564552084,5.6877,2016.6,2016.1,40.8]
[1741564552290,3.2078,2016.3,2016.1,40.8]
[1741564552491,4.1999,2016.3,2016.1,41.79215]
[1741564552692,3.2078,2016.6,2016.4,0.99203]
[1741564552995,0.00743439,2016.4,2016.2,0.99214]
[1741564553195,0.00743439,2016.4,2016.1,41.79216]
[1741564553387,0.00743439,2016.4,2016.3,0.99209]
[1741564553791,0.99951439,2016.4,2016.2,0.99213]
[1741564553996,0.99951439,2016.4,2016.1,40.8]
[1741564554197,0.00743439,2016.4,2016.3,0.99209]
[1741564554392,0.9921,2016.3,2016.1,40.8]
[1741564554591,0.99949439,2016.4,2016.3,0.99209]
[1741564554896,0.99949439,2016.4,2016.2,0.99209]
[1741564555097,0.00743439,2016.4,2016.3,0.99209]
[1741564557000,0.99947439,2016.4,2016.2,0.99211]
[1741564557292,0.00743439,2016.4,2016.2,0.99211]
[1741564557499,0.99950439,2016.4,2016.2,0.99211]
[1741564557699,0.99950439,2016.4,2016.2,0.9921]
[1741564558000,0.99950439,2016.4,2016.1,44.0078]
[1741564558493,0.00743439,2016.4,2016.2,0.9921]
[1741564558699,0.99951439,2016.4,2016.2,0.9921]
[1741564559100,0.00743439,2016.4,2016.1,44.0078]
[1741564559399,0.99214,2016.2,2016.1,44.0078]
[1741564559606,0.99211,2016.3,2016.2,0.99212]
[1741564559795,0.99211,2016.3,2016.1,44.99996]
[1741564559995,0.99214,2016.2,2016.1,44.99996]
[1741564560194,0.99219,2016.1,2016.0,0.00743439]
[1741564560397,3.2078,2016.3,2016.0,4.00743439]
[1741564560600,3.9486,2017.1,2016.2,3.2078]
[1741564560899,3.2078,2017.0,2016.6,40.8]
[1741564561093,4.19969,2016.7,2016.6,40.8]
[1741564561294,3.2078,2016.7,2016.1,5.9478]
[1741564561495,0.99219,2016.1,2016.0,0.00743439]
[1741564561799,0.99229,2015.9,2015.8,63.06]
[1741564561996,6.9747,2016.0,2015.5,3.2078]
[1741564562198,3.2078,2015.8,2015.2,3.2078]
[1741564562401,2.948,2015.9,2015.5,3.2078]
[1741564562706,0.99211,2016.3,2016.0,0.99221]
[1741564562903,3.2078,2016.3,2015.8,2.739]
[1741564563100,0.99223,2016.1,2015.7,4.20014]
[1741564563301,0.99226,2016.0,2015.7,4.20014]
[1741564563603,3.2078,2016.3,2015.6,2.7046]
[1741564563908,5.6884,2016.0,2015.5,0.00743439]
[1741564564103,0.99243,2015.6,2015.5,0.00743439]
[1741564565795,3.2078,2015.7,2015.5,0.00743439]
[1741564565995,3.9936,2015.9,2015.5,0.00743439]
[1741564566505,2.948,2016.0,2015.9,0.99229]
[1741564566699,2.948,2016.0,2015.9,4.20009]
[1741564566907,2.948,2016.0,2015.9,3.2078]
[1741564567209,0.9922,2016.1,2015.9,40.8]
[1741564567404,0.9922,2016.1,2015.9,41.79228]
[1741564567605,4.19993,2016.3,2016.0,0.9922]
[1741564567907,4.0634,2016.5,2015.9,44.0078]
[1741564568201,4.0634,2016.5,2015.9,46.7468]
[1741564568408,0.99219,2016.1,2015.9,47.73907]
[1741564568605,0.99215,2016.2,2015.9,44.53127]
[1741564568795,3.2078,2016.3,2015.9,43.539]
[1741564568999,3.2078,2016.3,2015.9,44.53126]
[1741564569410,3.2078,2016.3,2016.0,0.99224]
[1741564569606,3.2078,2016.3,2015.9,43.539]
[1741564569806,3.2078,2016.3,2015.9,44.53127]
[1741564570002,0.99217,2016.2,2015.9,43.539]
[1741564570208,3.2078,2016.3,2015.9,43.539]
[1741564570401,0.99219,2016.1,2015.9,44.53126]
[1741564570701,3.2078,2016.3,2015.9,43.539]
[1741564570906,3.2078,2016.3,2015.9,40.8]
[1741564570907,0.99224,2016.0,2015.9,40.8]
[1741564571108,3.2078,2016.0,2015.5,0.99987439]
[1741564571307,0.99241,2015.7,2015.5,0.00743439]
[1741564571507,0.99241,2015.7,2015.6,40.8]
[1741564571903,0.99235,2015.8,2015.6,41.79241]
[1741564572211,3.2078,2016.0,2015.9,0.99229]
[1741564572412,3.2078,2016.0,2015.7,7.3037]
[1741564572613,0.99226,2016.0,2015.8,0.99233]
[1741564572813,0.99226,2016.0,2015.9,40.8]
[1741564574006,5.933,2016.2,2016.0,0.99222]
[1741564574205,0.99217,2016.2,2016.0,0.99222]
[1741564574408,7.2953,2016.3,2016.2,0.99214]
[1741564574607,1.3421,2016.3,2016.2,0.99214]
[1741564575009,2.33421,2016.3,2016.1,0.99215]
[1741564575409,1.3421,2016.3,2015.9,40.8]
[1741564575709,0.99243,2015.6,2015.3,3.2078]
[1741564576013,0.99243,2015.6,2015.4,0.99252]
[1741564576213,0.99243,2015.6,2015.5,40.80743439]
[1741564577316,4.0915,2015.8,2015.5,40.80743439]
[1741564577508,2.33194,2015.8,2015.5,40.80743439]
[1741564577708,1.3396,2015.8,2015.7,0.99238]
[1741564577911,1.3627,2016.1,2015.7,2.48097]
[1741564578115,2.35489,2016.1,2016.0,0.99224]
[1741564578509,2.35489,2016.1,2015.9,0.99225]
[1741564578709,1.3627,2016.1,2016.0,0.99224]
[1741564578906,1.3396,2016.3,2015.8,1.3039]
[1741564579111,0.99225,2016.0,2015.8,2.2962]
[1741564579611,2.31077,2016.4,2015.9,5.68852]
[1741564579808,0.00743439,2016.6,2016.1,2.48048]
[1741564580011,0.00743439,2016.6,2016.5,0.99199]
[1741564580410,0.99199,2016.5,2016.4,2.737]
[1741564580617,0.99199,2016.5,2016.4,43.537]
[1741564580815,0.99199,2016.5,2016.4,40.8]
[1741564581514,5.10129,2016.5,2016.4,40.8]
[1741564582320,3.69019,2016.5,2016.4,40.8]
[1741564582618,0.00743439,2016.6,2016.4,44.0078]
[1741564582818,0.99940439,2016.6,2016.4,44.99981]
[1741564584212,0.00743439,2016.6,2016.5,0.99199]
[1741564584417,0.00743439,2016.6,2016.4,44.99983]
[1741564584616,0.00743439,2016.6,2016.4,44.0078]
[1741564584820,0.99199,2016.5,2016.4,40.8]
[1741564585317,3.21523439,2016.6,2016.1,3.2078]
[1741564585522,0.99211,2016.3,2016.1,4.19996]
[1741564585722,0.99209,2016.3,2016.2,40.8]
[1741564586222,3.21523439,2016.6,2016.2,40.8]
[1741564587017,0.00743439,2016.6,2016.5,0.99199]
[1741564587221,0.00743439,2016.6,2016.2,44.9999]
[1741564587416,3.21523439,2016.6,2016.2,41.79211]
[1741564587611,0.99209,2016.3,2016.2,40.8]
[1741564587927,0.99209,2016.3,2016.2,41.79212]
[1741564588225,0.00743439,2016.6,2016.5,0.99199]
[1741564588420,0.99177,2017.0,2016.8,0.99181]
[1741564588620,0.99181,2016.9,2016.7,0.99189]
[1741564588813,1.3539,2017.1,2016.6,2.28724]
[1741564588814,0.99189,2016.7,2016.6,2.28724]
[1741564589021,0.99187,2016.8,2016.6,2.28724]
[1741564589222,0.99187,2016.8,2016.6,2.28721]
[1741564589424,0.99187,2016.8,2016.6,1.2953]
[1741564589622,0.99187,2016.8,2016.6,2.2872]
[1741564589922,0.99187,2016.8,2016.6,2.28721]
[1741564590122,0.99187,2016.8,2016.6,1.2953]
[1741564590516,0.00743439,2016.9,2016.5,0.00743439]
[1741564590717,0.99194,2016.6,2016.5,0.00743439]
[1741564593020,4.19974,2016.6,2016.5,0.00743439]
[1741564596735,0.99209,2016.3,2016.2,40.8]
[1741564598230,2.7273,2016.5,2016.2,40.8]
[1741564598438,0.99209,2016.3,2016.2,40.8]
[1741564599931,4.19989,2016.3,2016.2,40.8]
[1741564600822,0.99209,2016.3,2016.2,40.8]
[1741564601026,4.19989,2016.3,2016.2,40.8]
[1741564601425,0.99219,2016.1,2016.0,0.00743439]
[1741564602130,0.99219,2016.1,2016.0,40.80743439]
[1741564603739,0.99219,2016.1,2016.0,41.79967439]
[1741564603939,3.2078,2016.3,2016.1,0.99215]
[1741564604137,0.99219,2016.1,2016.0,40.80743439]
[1741564608042,3.2078,2016.3,2016.0,40.80743439]
[1741564608341,0.99206,2016.4,2016.3,0.99207]
[1741564608644,0.99211,2016.3,2016.1,2.7475]
[1741564608845,2.948,2016.5,2016.1,2.7475]
[1741564609047,3.94002,2016.5,2016.3,0.99206]
[1741564609539,5.21798439,2016.9,2016.3,3.2078]
[1741564609540,3.21523439,2016.9,2016.3,3.2078]
[1741564609739,0.99196,2016.6,2016.3,3.2078]
[1741564609936,0.99199,2016.5,2016.4,0.99201]
[1741564610139,0.99199,2016.5,2016.3,4.19985]
[1741564610644,9.70774439,2016.9,2016.3,3.2078]
[1741564610645,0.99204,2016.4,2016.3,3.2078]
[1741564611232,0.992,2016.5,2016.4,0.99202]
[1741564611441,7.22823439,2016.9,2016.3,3.2078]
[1741564611642,0.99188,2016.8,2016.6,4.19971]
[1741564611851,7.22823439,2016.9,2016.6,4.19971]
[1741564612036,0.99189,2016.7,2016.6,4.19971]
[1741564612238,2.47978,2016.7,2016.1,5.4785]
[1741564612544,3.2078,2016.6,2016.3,0.99208]
[1741564612750,0.99204,2016.4,2016.3,0.99208]
[1741564612938,0.99204,2016.4,2016.1,5.4785]
[1741564613242,0.99214,2016.2,2016.1,5.4785]
[1741564613448,0.99214,2016.2,2016.1,1.4083]
[1741564615042,0.99219,2016.1,2016.0,40.80743439]
[1741564615244,2.7783,2016.4,2016.0,40.80743439]
[1741564615449,0.99219,2016.1,2016.0,40.80743439]
[1741564618245,5.68805,2016.3,2016.0,40.80743439]
[1741564618246,3.2078,2016.3,2016.0,40.80743439]
[1741564618547,4.19991,2016.3,2016.1,0.99215]
[1741564618747,0.99214,2016.2,2016.0,41.79964439]
[1741564618951,0.99219,2016.1,2016.0,40.80743439]
[1741564619951,3.2078,2016.3,2016.0,44.01523439]
[1741564620143,0.99216,2016.2,2016.0,45.00743439]
[1741564620549,0.99219,2016.1,2016.0,44.01523439]
[1741564620851,0.99218,2016.2,2016.1,0.99219]
[1741564621056,0.99218,2016.2,2016.0,45.00743439]
[1741564622051,0.99217,2016.2,2016.0,44.01523439]
[1741564622355,0.99217,2016.2,2016.0,45.00744439]
[1741564622656,0.99218,2016.2,2016.0,45.00744439]
[1741564622853,0.99219,2016.1,2016.0,44.01523439]
[1741564623255,3.2078,2016.3,2016.0,44.01523439]
[1741564623454,5.69474439,2016.9,2016.0,48.01523439]
[1741564623750,0.99204,2016.4,2016.3,3.2078]
[1741564623953,0.99219,2016.1,2016.0,3.21523439]
[1741564624153,0.99219,2016.1,2016.0,0.00743439]
[1741564624551,0.99219,2016.1,2016.0,40.80743439]
[1741564625155,4.99219,2016.1,2016.0,0.00743439]
[1741564625353,0.99219,2016.1,2016.0,0.00743439]
[1741564627158,21.69333527,2017.3,2016.0,15.22905254]
[1741564627355,1.3218,2017.2,2016.5,3.2078]
[1741564627554,2.31348,2017.2,2016.6,5.3041]
[1741564627753,1.3218,2017.2,2016.7,40.8]
[1741564627956,0.99927439,2016.9,2016.7,40.8]
[1741564628254,0.99184,2016.8,2016.7,40.8]
[1741564628452,5.04504,2016.8,2016.7,40.8]
[1741564628859,4.0532,2016.8,2016.1,7.2108]
[1741564629056,0.99204,2016.4,2016.1,7.2108]
[1741564629261,3.2078,2016.7,2016.2,40.8]
[1741564629554,0.99209,2016.3,2016.2,40.8]
[1741564629759,4.19989,2016.3,2016.2,40.8]
[1741564631161,0.99209,2016.3,2016.2,40.8]
[1741564631955,5.01859,2016.3,2016.2,40.8]
[1741564633157,3.2078,2016.4,2016.2,40.8]
[1741564633359,3.2078,2016.8,2016.2,40.8]
[1741564633557,4.1069,2017.0,2016.8,0.99184]
[1741564633764,1.3967,2017.0,2016.7,4.19967]
[1741564633957,3.21523439,2016.9,2016.3,2.5761]
[1741564634158,1.3798,2016.8,2016.2,40.8]
[1741564634371,0.99209,2016.3,2016.2,40.8]
[1741564634566,0.99214,2016.2,2016.1,3.2078]
[1741564634763,2.37194,2016.2,2016.1,3.2078]
[1741564634962,2.37194,2016.2,2016.1,44.0078]
[1741564635164,1.3601,2016.4,2016.1,44.0078]
[1741564635364,2.7399,2016.4,2016.1,44.0078]
[1741564635968,0.99211,2016.3,2016.1,44.0078]
[1741564636162,3.73195,2016.4,2016.1,44.99996]
[1741564636761,2.7399,2016.4,2016.1,44.0078]
[1741564637065,0.9921,2016.3,2016.1,44.0078]
[1741564638070,3.73196,2016.4,2016.1,44.99998]
[1741564638470,0.99209,2016.3,2016.1,44.0078]
[1741564639069,2.948,2016.8,2016.1,44.0078]
[1741564639377,0.00743439,2016.9,2016.7,3.2078]
[1741564639567,0.99925439,2016.9,2016.7,3.2078]
[1741564639764,0.00743439,2016.9,2016.6,2.725]
[1741564639967,0.99185,2016.8,2016.6,2.725]
[1741564640871,0.99189,2016.7,2016.6,2.725]
[1741564641171,0.99188,2016.8,2016.6,2.725]
[1741564641671,3.21523439,2016.9,2016.4,3.2078]
[1741564641967,1.3974,2016.7,2016.2,4.0267]
[1741564642171,0.99209,2016.3,2016.2,2.724]
[1741564642468,0.99209,2016.3,2016.0,1.34013439]
[1741564642469,0.99219,2016.1,2016.0,0.00743439]
[1741564642672,0.99218,2016.2,2016.0,0.00743439]
[1741564642868,0.99214,2016.2,2016.1,40.8]
[1741564643475,5.4816,2016.3,2016.1,41.79219]
[1741564643674,1.4076,2016.4,2016.1,40.8]
[1741564644168,0.99214,2016.2,2016.1,40.8]
[1741564645569,4.0,2016.2,2016.0,0.00743439]
[1741564645765,0.99245,2015.6,2015.4,6.1568]
[1741564645974,0.99245,2015.6,2015.4,3.2078]
[1741564646480,3.2078,2015.9,2015.4,3.2078]
[1741564646670,0.99241,2015.7,2015.5,40.8]
[1741564646864,0.99243,2015.6,2015.5,40.8]